bitfinex/quotes_BTCUSD_20250624
["timestamp","ask_amount","ask_price","bid_price","bid_amount"]
[1750768754926,1.1248955,105120.0,105110.0,0.62587317]
[1750768756172,1.1084955,105120.0,105110.0,0.62587317]
[1750768756576,1.1234955,105120.0,105110.0,0.62587317]
[1750768757185,1.1234955,105120.0,105110.0,0.63538656]
[1750768757385,0.64338687,105120.0,105110.0,0.63538601]
[1750768757587,0.62436191,105120.0,105110.0,0.66648601]
[1750768757790,0.34,105120.0,105110.0,0.66648601]
[1750768757992,0.51182161,105140.0,105120.0,0.43057105]
[1750768758198,0.99591693,105140.0,105130.0,0.50259751]
[1750768758418,1.14569374,105140.0,105130.0,0.50259751]
[1750768758615,1.13618298,105140.0,105130.0,0.50259751]
[1750768759027,0.64338298,105140.0,105130.0,0.50259751]
[1750768759451,0.64538298,105140.0,105130.0,0.50259751]
[1750768759667,0.65489383,105140.0,105130.0,0.50259751]
[1750768759866,0.64338298,105140.0,105130.0,0.50259751]
[1750768761184,0.64438298,105140.0,105130.0,0.50259751]
[1750768761402,0.64638298,105140.0,105130.0,0.50259751]
[1750768761559,0.65489383,105140.0,105130.0,0.50259751]
[1750768761804,0.64538298,105140.0,105130.0,0.50259751]
[1750768762012,0.65589383,105140.0,105130.0,0.50259751]
[1750768762437,0.66540477,105140.0,105130.0,0.50259751]
[1750768762640,0.85562733,105140.0,105130.0,0.26842186]
[1750768762824,0.85562733,105140.0,105130.0,0.47179815]
[1750768762825,0.83660626,105140.0,105130.0,0.47179815]
[1750768763424,0.82709541,105140.0,105130.0,0.09550186]
[1750768763611,0.02853436,105130.0,105120.0,0.58998362]
[1750768763819,0.31289581,105130.0,105120.0,0.88448548]
[1750768764173,0.32240739,105130.0,105120.0,0.88448548]
[1750768764390,0.31289581,105130.0,105120.0,0.88448548]
[1750768764586,0.32240739,105130.0,105120.0,0.88448548]
[1750768765448,0.31289581,105130.0,105120.0,0.88448548]
[1750768766196,0.32240739,105130.0,105120.0,0.88448548]
[1750768766404,0.31289581,105130.0,105120.0,0.88448548]
[1750768766581,0.32240739,105130.0,105120.0,0.88448548]
[1750768766989,0.31289581,105130.0,105120.0,0.88448548]
[1750768767424,0.31289581,105130.0,105120.0,0.98448548]
[1750768767635,0.28436191,105130.0,105120.0,0.98448548]
[1750768767855,0.6433828,105140.0,105130.0,0.24957565]
[1750768768066,0.66240432,105140.0,105130.0,0.34507751]
[1750768768271,0.66240432,105140.0,105130.0,0.33007751]
[1750768768493,0.65289347,105140.0,105130.0,0.33007751]
[1750768768924,0.67191526,105140.0,105130.0,0.33007751]
[1750768769351,0.66240432,105140.0,105130.0,0.33007751]
[1750768770018,0.66240423,105140.0,105130.0,0.33007751]
[1750768770215,0.67191517,105140.0,105130.0,0.33007751]
[1750768771079,0.86213773,105140.0,105130.0,0.33007751]
[1750768771438,0.86213836,105140.0,105130.0,0.31427751]
[1750768771803,0.86213899,105140.0,105130.0,0.30476612]
[1750768772006,0.85262832,105140.0,105130.0,0.3142777]
[1750768773872,0.84311756,105140.0,105130.0,0.30476621]
[1750768774084,0.83360662,105140.0,105130.0,0.30476621]
[1750768774501,0.84698447,105140.0,105130.0,0.48474251]
[1750768774723,0.84698447,105140.0,105130.0,0.29450186]
[1750768774928,0.19975259,105130.0,105120.0,0.54976898]
[1750768775141,0.8565145,105130.0,105120.0,0.44653479]
[1750768775345,0.8565145,105130.0,105120.0,0.29896]
[1750768775556,0.8565145,105130.0,105120.0,0.49873168]
[1750768776462,0.8565145,105130.0,105120.0,0.50073168]
[1750768776687,0.8565145,105130.0,105120.0,0.31047293]
[1750768776915,0.8565145,105130.0,105120.0,0.31147293]
[1750768777121,0.8565145,105130.0,105120.0,0.51124452]
[1750768777339,0.652897,105130.0,105120.0,0.86598391]
[1750768777551,0.652897,105130.0,105120.0,0.83528391]
[1750768777789,0.66240894,105130.0,105120.0,0.83528391]
[1750768777991,0.85264959,105130.0,105120.0,0.83528391]
[1750768778447,0.66240894,105130.0,105120.0,0.83528391]
[1750768778896,0.652897,105130.0,105120.0,0.83528391]
[1750768779201,0.86216162,105130.0,105120.0,0.82577161]
[1750768779406,0.85265014,105130.0,105120.0,0.82577161]
[1750768780198,0.85265014,105130.0,105120.0,0.83528409]
[1750768781182,0.86805014,105130.0,105120.0,0.83528409]
[1750768781934,0.86805014,105130.0,105120.0,0.82577161]
[1750768782141,0.84902653,105130.0,105120.0,0.80674638]
[1750768782365,0.85521459,105130.0,105120.0,0.80674638]
[1750768782579,0.85521459,105130.0,105120.0,0.82577179]
[1750768784222,0.85521459,105130.0,105120.0,0.83528436]
[1750768785097,0.83951459,105130.0,105120.0,0.83528436]
[1750768785824,0.85601459,105130.0,105120.0,0.83528436]
[1750768786906,0.85601459,105130.0,105120.0,0.82577179]
[1750768789035,0.85601459,105130.0,105120.0,0.83528436]
[1750768790280,0.83951459,105130.0,105120.0,0.83528436]
[1750768790487,0.83951459,105130.0,105120.0,0.82577179]
[1750768792029,0.83951459,105130.0,105120.0,0.81625913]
[1750768792872,0.85561459,105130.0,105120.0,0.81625913]
[1750768793070,0.85561459,105130.0,105120.0,0.80674638]
[1750768793278,0.85561459,105130.0,105120.0,0.81625913]
[1750768793697,0.84610256,105130.0,105120.0,0.44002186]
[1750768793905,0.84610256,105130.0,105120.0,0.59742186]
[1750768795177,0.84610256,105130.0,105120.0,0.78768061]
[1750768795783,0.84610256,105130.0,105120.0,0.59742186]
[1750768796088,0.56174065,105130.0,105120.0,0.78768061]
[1750768796292,0.85561432,105130.0,105120.0,0.80670611]
[1750768796491,0.84313783,105130.0,105120.0,0.81621859]
[1750768797355,0.84313783,105130.0,105120.0,0.82573098]
[1750768797768,0.64338515,105130.0,105120.0,0.83524328]
[1750768797928,0.652897,105130.0,105120.0,0.83524328]
[1750768798508,0.35902251,105130.0,105120.0,1.16584328]
[1750768798715,0.34,105130.0,105120.0,1.31584328]
[1750768798927,0.30338352,105140.0,105130.0,0.21877565]
[1750768799137,0.30338352,105140.0,105130.0,0.31427751]
[1750768799545,0.64338352,105140.0,105130.0,0.31427751]
[1750768800211,0.64338352,105140.0,105130.0,0.34567751]
[1750768800432,0.64338352,105140.0,105130.0,0.29525445]
[1750768800433,0.8431172,105140.0,105130.0,0.29525445]
[1750768800645,0.8590172,105140.0,105130.0,0.3047663]
[1750768800852,0.8743172,105140.0,105130.0,0.31427806]
[1750768801539,0.86480653,105140.0,105130.0,0.29525445]
[1750768801743,0.86480653,105140.0,105130.0,0.31427806]
[1750768802582,0.86480653,105140.0,105130.0,0.33330112]
[1750768802775,0.67458397,105140.0,105130.0,0.33330112]
[1750768802971,0.86480608,105140.0,105130.0,0.33330112]
[1750768803201,0.87431711,105140.0,105130.0,0.32378973]
[1750768804335,0.87431711,105140.0,105130.0,0.33330085]
[1750768804811,0.88382823,105140.0,105130.0,0.33330085]
[1750768805234,0.88382823,105140.0,105130.0,0.32378937]
[1750768805447,0.88382823,105140.0,105130.0,0.30476612]
[1750768805657,0.87431756,105140.0,105130.0,0.30476612]
[1750768806707,0.87431756,105140.0,105130.0,0.32378909]
[1750768806913,0.85901756,105140.0,105130.0,0.32378909]
[1750768807536,0.668795,105140.0,105130.0,0.32378909]
[1750768807755,0.34,105140.0,105130.0,0.35568909]
[1750768807992,0.64338316,105140.0,105130.0,0.35568909]
[1750768808205,0.6338724,105140.0,105130.0,0.35568909]
[1750768808342,0.64338307,105140.0,105130.0,0.34038909]
[1750768808551,0.65289392,105140.0,105130.0,0.34038909]
[1750768808788,0.64338307,105140.0,105130.0,0.34038909]
[1750768809005,0.65289392,105140.0,105130.0,0.34038909]
[1750768809630,0.64338307,105140.0,105130.0,0.34038909]
[1750768809831,0.65289392,105140.0,105130.0,0.34038909]
[1750768810029,0.85262751,105140.0,105130.0,0.32378909]
[1750768810243,0.87813863,105140.0,105130.0,0.3142777]
[1750768810460,0.87481747,105140.0,105130.0,0.28574251]
[1750768810680,0.86530662,105140.0,105130.0,0.29434186]
[1750768813071,0.86530662,105140.0,105130.0,0.29430186]
[1750768813500,0.86530662,105140.0,105130.0,0.13694186]
[1750768813712,0.86530662,105140.0,105130.0,0.29430186]
[1750768814761,0.86530662,105140.0,105130.0,0.29426186]
[1750768814970,0.86530662,105140.0,105130.0,0.50352648]
[1750768815855,0.86530662,105140.0,105130.0,0.29525454]
[1750768816324,0.85579559,105140.0,105130.0,0.09550186]
[1750768817842,0.85579559,105140.0,105130.0,0.28574251]
[1750768819271,0.20926435,105130.0,105120.0,0.39977168]
[1750768819485,0.50313793,105130.0,105120.0,0.60478638]
[1750768819684,0.32240886,105130.0,105120.0,0.62381179]
[1750768819889,0.51264951,105130.0,105120.0,0.61429913]
[1750768820313,0.50313793,105130.0,105120.0,0.61429913]
[1750768820722,0.49362626,105130.0,105120.0,0.61529913]
[1750768820928,0.49362626,105130.0,105120.0,0.60578638]
[1750768821911,0.49362626,105130.0,105120.0,0.61529913]
[1750768822274,0.20926435,105130.0,105120.0,0.62681179]
[1750768822489,0.49362626,105130.0,105120.0,0.62681179]
[1750768825407,0.4841145,105130.0,105120.0,0.61729913]
[1750768825747,0.47460256,105130.0,105120.0,0.60778638]
[1750768827877,0.47460256,105130.0,105120.0,0.61729913]
[1750768828506,0.47460256,105130.0,105120.0,0.62681179]
[1750768829278,0.47460256,105130.0,105120.0,0.61729913]
[1750768829483,0.47460256,105130.0,105120.0,0.60778638]
[1750768829925,0.47460256,105130.0,105120.0,0.61729913]
[1750768830332,0.47460256,105130.0,105120.0,0.60778638]
[1750768830535,0.84670256,105130.0,105120.0,0.19850186]
[1750768830775,0.84670256,105130.0,105120.0,0.003]
[1750768831796,0.84670256,105130.0,105120.0,0.001]
[1750768832062,0.83362553,105130.0,105120.0,0.53718602]
[1750768832189,0.83362617,105130.0,105120.0,0.53618602]
[1750768832389,0.83362617,105130.0,105120.0,0.5456985]
[1750768832585,0.83362617,105130.0,105120.0,0.55521089]
[1750768832813,0.66240803,105130.0,105120.0,0.56472319]
[1750768833574,0.49360608,105140.0,105130.0,0.21877592]
[1750768833789,0.8431172,105140.0,105130.0,0.31427797]
[1750768834008,0.83360653,105140.0,105130.0,0.31427797]
[1750768834430,0.82409559,105140.0,105130.0,0.30476648]
[1750768834646,0.82409559,105140.0,105130.0,0.31427833]
[1750768834853,0.83909559,105140.0,105130.0,0.31427833]
[1750768835708,0.82958447,105140.0,105130.0,0.30476648]
[1750768835883,0.84508447,105140.0,105130.0,0.30476648]
[1750768836089,0.82958447,105140.0,105130.0,0.31427815]
[1750768836295,0.82958447,105140.0,105130.0,0.31427833]
[1750768836504,0.82958447,105140.0,105130.0,0.32379009]
[1750768836961,0.81458447,105140.0,105130.0,0.33330167]
[1750768839018,0.82409541,105140.0,105130.0,0.33330112]
[1750768839226,0.82409541,105140.0,105130.0,0.33898964]
[1750768839875,0.83360608,105140.0,105130.0,0.33898964]
[1750768840094,0.65289455,105140.0,105130.0,0.34850103]
[1750768840302,0.64338352,105140.0,105130.0,0.36480103]
[1750768840510,0.65289455,105140.0,105130.0,0.36480103]
[1750768841505,0.65289392,105140.0,105130.0,0.36480103]
[1750768841900,0.85911711,105140.0,105130.0,0.31427806]
[1750768842744,0.85911711,105140.0,105130.0,0.32378973]
[1750768843170,0.84311711,105140.0,105130.0,0.33330131]
[1750768844420,0.65289455,105140.0,105130.0,0.33330085]
[1750768844645,0.35902161,105140.0,105130.0,0.33330039]
[1750768844990,0.64338352,105140.0,105130.0,0.33330039]
[1750768845196,0.65289455,105140.0,105130.0,0.33330039]
[1750768846061,0.36853264,105140.0,105130.0,0.33330039]
[1750768846265,0.84311711,105140.0,105130.0,0.33330039]
[1750768846843,0.84311711,105140.0,105130.0,0.323789]
[1750768847048,0.84311711,105140.0,105130.0,0.29525445]
[1750768847049,0.85951711,105140.0,105130.0,0.29525445]
[1750768847237,0.87531711,105140.0,105130.0,0.29525445]
[1750768847384,0.86580644,105140.0,105130.0,0.29525445]
[1750768847597,0.86580644,105140.0,105130.0,0.3047663]
[1750768849072,0.86580644,105140.0,105130.0,0.09550186]
[1750768849073,0.8562955,105140.0,105130.0,0.09550186]
[1750768851154,0.8562955,105140.0,105130.0,0.3047663]
[1750768851991,0.8562955,105140.0,105130.0,0.28574251]
[1750768852205,0.8562955,105140.0,105130.0,0.29525454]
[1750768853040,0.8562955,105140.0,105130.0,0.30476648]
[1750768854121,0.8562955,105140.0,105130.0,0.31427824]
[1750768854539,0.37542125,105140.0,105130.0,0.3333013]
[1750768854729,0.64338316,105140.0,105130.0,0.3651013]
[1750768854929,0.64338307,105140.0,105130.0,0.3651013]
[1750768857649,0.6338724,105140.0,105130.0,0.3651013]
[1750768857786,0.64338307,105140.0,105130.0,0.3651013]
[1750768858231,0.65289392,105140.0,105130.0,0.3651013]
[1750768858382,0.66240486,105140.0,105130.0,0.3651013]
[1750768858590,0.37804295,105140.0,105130.0,0.3651013]
[1750768858784,0.66240486,105140.0,105130.0,0.3651013]
[1750768859493,0.87743845,105140.0,105130.0,0.09550186]
[1750768859664,0.86450644,105140.0,105130.0,0.29525454]
[1750768860016,0.86450644,105140.0,105130.0,0.30476648]
[1750768860648,0.8549955,105140.0,105130.0,0.30476648]
[1750768860852,0.84548447,105140.0,105130.0,0.09550186]
[1750768861152,0.84548447,105140.0,105130.0,0.30476648]
[1750768861337,0.84548447,105140.0,105130.0,0.31427833]
[1750768864274,0.82409487,105140.0,105130.0,0.33330139]
[1750768864484,0.65289356,105140.0,105130.0,0.48330139]
[1750768864745,0.65289356,105140.0,105130.0,0.51490139]
[1750768865105,0.65289347,105140.0,105130.0,0.51490139]
[1750768865471,0.6433828,105140.0,105130.0,0.51490139]
[1750768865674,0.65289347,105140.0,105130.0,0.51490139]
[1750768866811,0.66240423,105140.0,105130.0,0.51490139]
[1750768867020,0.67191517,105140.0,105130.0,0.51490139]
[1750768867220,0.67191517,105140.0,105130.0,0.48330139]
[1750768868893,0.66240423,105140.0,105130.0,0.48330139]
[1750768869097,0.67191517,105140.0,105130.0,0.48330139]
[1750768869713,0.6719158,105140.0,105130.0,0.48330139]
[1750768869917,0.86213836,105140.0,105130.0,0.48330139]
[1750768870119,0.85262832,105140.0,105130.0,0.47379]
[1750768870319,0.82409559,105140.0,105130.0,0.43574251]
[1750768870658,0.84039559,105140.0,105130.0,0.45476639]
[1750768870860,0.85659559,105140.0,105130.0,0.45476639]
[1750768871679,0.85659559,105140.0,105130.0,0.46427815]
[1750768871888,0.85659559,105140.0,105130.0,0.47378982]
[1750768872546,0.85659559,105140.0,105130.0,0.46427815]
[1750768872779,0.84708447,105140.0,105130.0,0.45476639]
[1750768873356,0.84708447,105140.0,105130.0,0.46427815]
[1750768874257,0.84708447,105140.0,105130.0,0.47378973]
[1750768874967,0.63387258,105140.0,105130.0,0.48330112]
[1750768875175,0.65289392,105140.0,105130.0,0.49910112]
[1750768875595,0.66240495,105140.0,105130.0,0.49910112]
[1750768875838,0.66240495,105140.0,105130.0,0.48330112]
[1750768876117,0.85262751,105140.0,105130.0,0.47378973]
[1750768876350,0.85262823,105140.0,105130.0,0.46427815]
[1750768876766,0.83360662,105140.0,105130.0,0.46427815]
[1750768876991,0.85589559,105140.0,105130.0,0.24550186]
[1750768877207,0.88447159,105140.0,105130.0,0.24550186]
[1750768878916,0.88447159,105140.0,105130.0,0.44525454]
[1750768879123,0.87496047,105140.0,105130.0,0.44525454]
[1750768880277,0.87496047,105140.0,105130.0,0.45476648]
[1750768880463,0.87496047,105140.0,105130.0,0.44525454]
[1750768882307,0.87496047,105140.0,105130.0,0.24550186]
[1750768882507,0.87496047,105140.0,105130.0,0.43574251]
[1750768882716,0.87496047,105140.0,105130.0,0.44525454]
[1750768883318,0.66244876,105140.0,105130.0,0.47378963]
[1750768883518,0.84311702,105140.0,105130.0,0.47378963]
[1750768884639,0.84311702,105140.0,105130.0,0.46427815]
[1750768884840,0.83360644,105140.0,105130.0,0.46427833]
[1750768885044,0.83360644,105140.0,105130.0,0.47379009]
[1750768885346,0.82409559,105140.0,105130.0,0.46427833]
[1750768885554,0.81458447,105140.0,105130.0,0.24550186]
[1750768885766,0.84658447,105140.0,105130.0,0.24550186]
[1750768885978,0.01902469,105120.0,105110.0,0.20929592]
[1750768886185,0.32241174,105120.0,105110.0,0.41431098]
[1750768886394,1.11800816,105120.0,105110.0,0.19550186]
[1750768886605,1.11800816,105120.0,105110.0,0.39529255]
[1750768886606,1.13440816,105120.0,105110.0,0.39529255]
[1750768886814,1.15000816,105120.0,105110.0,0.19550186]
[1750768887022,1.14049541,105120.0,105110.0,0.19550186]
[1750768887450,1.14049541,105120.0,105110.0,0.19850186]
[1750768887653,1.14049541,105120.0,105110.0,0.38877871]
[1750768887858,1.14149541,105120.0,105110.0,0.39929237]
[1750768888062,1.14149541,105120.0,105110.0,0.40980594]
[1750768888266,0.8561335,105120.0,105110.0,0.40580594]
[1750768888441,0.8561335,105120.0,105110.0,0.40780594]
[1750768888877,0.66929944,105120.0,105110.0,0.42683262]
[1750768889080,0.65289944,105120.0,105110.0,0.42683262]
[1750768889285,0.65289908,105120.0,105110.0,0.45833262]
[1750768889697,0.65289899,105120.0,105110.0,0.45833262]
[1750768889903,0.66241174,105120.0,105110.0,0.45833262]
[1750768890107,0.66241165,105120.0,105110.0,0.45833262]
[1750768890600,0.6719244,105120.0,105110.0,0.45833262]
[1750768892356,0.86218396,105120.0,105110.0,0.42683281]
[1750768892765,0.85267157,105120.0,105110.0,0.42683281]
[1750768893197,0.65289989,105120.0,105110.0,0.42683281]
[1750768893404,0.65289989,105120.0,105110.0,0.43634601]
[1750768893405,0.85267148,105120.0,105110.0,0.43634601]
[1750768893619,0.85267184,105120.0,105110.0,0.42683281]
[1750768893826,0.86604643,105120.0,105110.0,0.40780621]
[1750768894680,1.1408955,105120.0,105110.0,0.103]
[1750768896624,1.1694795,105120.0,105110.0,0.103]
[1750768897042,1.1694795,105120.0,105110.0,0.31230444]
[1750768897472,1.1530795,105120.0,105110.0,0.33133131]
[1750768897886,0.86871759,105120.0,105110.0,0.33133131]
[1750768898496,0.86871759,105120.0,105110.0,0.3408446]
[1750768899114,0.6879715,105120.0,105110.0,0.34084396]
[1750768899344,0.68148353,105120.0,105110.0,0.43634582]
[1750768899755,0.69099556,105120.0,105110.0,0.43634582]
[1750768900224,0.85267094,105120.0,105110.0,0.41731933]
[1750768900425,0.86877094,105120.0,105110.0,0.41731933]
[1750768900636,0.86877094,105120.0,105110.0,0.42683262]
[1750768901242,1.16264569,105120.0,105110.0,0.43634582]
[1750768901440,1.1531333,105120.0,105110.0,0.42683262]
[1750768902054,1.13410816,105120.0,105110.0,0.29327685]
[1750768902291,1.13410816,105120.0,105110.0,0.3027906]
[1750768902292,1.15050816,105120.0,105110.0,0.3027906]
[1750768902522,1.16957841,105120.0,105110.0,0.103]
[1750768902732,1.18411926,105120.0,105110.0,0.103]
[1750768902958,1.18411926,105120.0,105110.0,0.003]
[1750768903140,1.21309297,105120.0,105110.0,0.003]
[1750768904010,1.21309297,105120.0,105110.0,0.001]
[1750768904362,1.21509297,105120.0,105110.0,0.001]
[1750768904718,0.2315906,105110.0,105100.0,0.21136963]
[1750768904848,0.51595251,105110.0,105100.0,0.20185507]
[1750768905202,0.51595251,105110.0,105100.0,0.19234042]
[1750768905579,0.51595251,105110.0,105100.0,0.20185507]
[1750768906435,0.51595251,105110.0,105100.0,0.21136963]
[1750768906557,0.54453951,105110.0,105100.0,0.21136963]
[1750768906781,0.54453951,105110.0,105100.0,0.2208841]
[1750768906985,0.54453951,105110.0,105100.0,0.23039848]
[1750768907406,0.54453951,105110.0,105100.0,0.23991277]
[1750768908250,0.54453951,105110.0,105100.0,0.23039848]
[1750768909114,0.54453951,105110.0,105100.0,0.2208841]
[1750768910289,0.54453951,105110.0,105100.0,0.23039848]
[1750768912189,0.54453951,105110.0,105100.0,0.21136963]
[1750768912601,0.54453951,105110.0,105100.0,0.2208841]
[1750768912772,0.54453951,105110.0,105100.0,0.23039848]
[1750768913257,0.54453951,105110.0,105100.0,0.2208841]
[1750768914526,0.54453951,105110.0,105100.0,0.20185565]
[1750768914752,0.54453951,105110.0,105100.0,0.21137021]
[1750768915317,0.53502576,105110.0,105100.0,0.0115607]
[1750768915517,0.53502576,105110.0,105100.0,0.20185565]
[1750768915742,0.53502576,105110.0,105100.0,0.2113703]
[1750768916432,0.53502576,105110.0,105100.0,0.20185565]
[1750768916846,0.53502576,105110.0,105100.0,0.19234091]
[1750768917042,0.53502576,105110.0,105100.0,0.20185565]
[1750768917895,0.53502576,105110.0,105100.0,0.19234091]
[1750768918052,0.53502576,105110.0,105100.0,0.20185565]
[1750768919123,0.53502576,105110.0,105100.0,0.00204596]
[1750768919354,0.53502576,105110.0,105100.0,0.19234091]
[1750768919769,0.53502576,105110.0,105100.0,0.00204596]
[1750768920648,0.88936661,105110.0,105100.0,0.00204596]
[1750768923224,1.17372852,105110.0,105100.0,0.00204596]
[1750768923607,1.19644336,105110.0,105100.0,0.00204596]
[1750768923816,0.91208145,105110.0,105100.0,0.00204596]
[1750768924719,1.40588145,105110.0,105100.0,0.00204596]
[1750768925578,1.40788145,105110.0,105100.0,0.00204596]
[1750768927448,1.38516661,105110.0,105100.0,0.00204596]
[1750768928346,1.16777632,105110.0,105100.0,0.42088423]
[1750768928553,1.35805317,105110.0,105100.0,0.42088423]
[1750768929662,1.35805317,105110.0,105100.0,0.41136994]
[1750768930295,1.35805317,105110.0,105100.0,0.40185556]
[1750768930558,1.33902576,105110.0,105100.0,0.40185565]
[1750768931236,1.35402576,105110.0,105100.0,0.00204596]
[1750768931453,1.38516661,105110.0,105100.0,0.00204596]
[1750768935255,1.06417705,105110.0,105100.0,0.20185556]
[1750768935467,1.33902576,105110.0,105100.0,0.20185556]
[1750768935675,1.33902576,105110.0,105100.0,0.21137012]
[1750768937285,1.33902576,105110.0,105100.0,0.20185556]
[1750768938612,1.33902576,105110.0,105100.0,0.21137003]
[1750768938779,1.34853951,105110.0,105100.0,0.21137003]
[1750768939413,1.34853951,105110.0,105100.0,0.22088441]
[1750768940085,1.34853951,105110.0,105100.0,0.21137003]
[1750768940286,1.34853951,105110.0,105100.0,0.20185556]
[1750768940733,1.0641776,105110.0,105100.0,0.21136994]
[1750768940929,1.34853951,105110.0,105100.0,0.21136994]
[1750768941380,1.34853951,105110.0,105100.0,0.20185556]
[1750768941580,0.84622576,105110.0,105100.0,0.19234091]
[1750768941973,0.84622576,105110.0,105100.0,0.20185565]
[1750768942387,0.84622576,105110.0,105100.0,0.2113703]
[1750768942590,0.84622576,105110.0,105100.0,0.20185565]
[1750768943010,0.84622576,105110.0,105100.0,0.00204596]
[1750768943210,0.87822576,105110.0,105100.0,0.00204596]
[1750768945750,1.23323743,105110.0,105100.0,0.00204596]
[1750768945956,1.35712808,105110.0,105100.0,0.00204596]
[1750768948791,1.07276617,105110.0,105100.0,0.00204596]
[1750768949011,0.9438893,105110.0,105100.0,0.00204596]
[1750768949675,0.91550051,105110.0,105100.0,0.00204596]
[1750768950660,1.19986242,105110.0,105100.0,0.00204596]
[1750768950874,1.22825121,105110.0,105100.0,0.00204596]
[1750768952057,1.19986242,105110.0,105100.0,0.00204596]
[1750768954358,0.91550051,105110.0,105100.0,0.00204596]
[1750768954763,0.90095966,105110.0,105100.0,0.00204596]
[1750768955009,0.88350051,105110.0,105100.0,0.00204596]
[1750768955144,0.86076661,105110.0,105100.0,0.00204596]
[1750768956180,0.50622576,105110.0,105100.0,0.03204596]
[1750768956518,0.50622576,105110.0,105100.0,0.01704596]
[1750768956719,0.50622576,105110.0,105100.0,0.00204596]
[1750768956842,0.84622576,105110.0,105100.0,0.00204596]
[1750768960696,0.87622576,105110.0,105100.0,0.00204596]
[1750768961346,0.86122576,105110.0,105100.0,0.00204596]
[1750768964848,0.87662576,105110.0,105100.0,0.00204596]
[1750768965062,1.19824852,105110.0,105100.0,0.00204596]
[1750768965685,0.91388661,105110.0,105100.0,0.00204596]
[1750768966993,1.19824852,105110.0,105100.0,0.00204596]
[1750768968853,0.91388661,105110.0,105100.0,0.00204596]
[1750768970358,0.89848661,105110.0,105100.0,0.00204596]
[1750768970776,0.88394576,105110.0,105100.0,0.00204596]
[1750768975667,0.86894576,105110.0,105100.0,0.00204596]
[1750768975873,0.84622576,105110.0,105100.0,0.03394596]
[1750768977206,0.56186385,105110.0,105100.0,0.22424091]
[1750768977469,0.54427958,105110.0,105100.0,0.548286]
[1750768977641,0.69400273,105110.0,105100.0,0.65780011]
[1750768977889,0.88427958,105110.0,105100.0,0.65780011]
[1750768978123,0.89379342,105110.0,105100.0,0.648286]
[1750768978368,0.88228022,105110.0,105100.0,0.64828609]
[1750768978722,0.88228022,105110.0,105100.0,0.65980029]
[1750768978922,0.88128022,105110.0,105100.0,0.65980029]
[1750768979160,0.88128022,105110.0,105100.0,0.6693144]
[1750768979553,0.68148944,105110.0,105100.0,0.6703144]
[1750768979959,0.88128004,105110.0,105100.0,0.6703144]
[1750768980177,0.88128004,105110.0,105100.0,0.66080029]
[1750768980379,0.88128004,105110.0,105100.0,0.65128609]
[1750768980613,0.86225317,105110.0,105100.0,0.43244782]
[1750768981208,0.86225317,105110.0,105100.0,0.63225733]
[1750768981429,0.86225317,105110.0,105100.0,0.63225742]
[1750768981634,0.86225317,105110.0,105100.0,0.65128636]
[1750768981837,0.57789126,105110.0,105100.0,0.66080065]
[1750768982050,0.86225317,105110.0,105100.0,0.64177198]
[1750768982430,0.85273951,105110.0,105100.0,0.64177198]
[1750768982836,0.85273951,105110.0,105100.0,0.65128645]
[1750768983033,0.85273951,105110.0,105100.0,0.45128645]
[1750768983241,0.85273951,105110.0,105100.0,0.10504596]
[1750768983444,0.85872576,105110.0,105100.0,0.10504596]
[1750768983770,0.85872576,105110.0,105100.0,0.00504596]
[1750768984688,0.87522576,105110.0,105100.0,0.00504596]
[1750768985098,0.53980969,105100.0,105090.0,0.19802859]
[1750768985353,0.82421771,105100.0,105090.0,0.39353045]
[1750768985554,0.83373218,105100.0,105090.0,0.4125613]
[1750768986540,0.83373218,105100.0,105090.0,0.4145613]
[1750768986746,0.83373218,105100.0,105090.0,0.42407659]
[1750768987144,0.84324638,105100.0,105090.0,0.43359179]
[1750768987344,0.65295125,105100.0,105090.0,0.46569115]
[1750768988014,0.85276085,105100.0,105090.0,0.46569115]
[1750768988238,0.85276139,105100.0,105090.0,0.45617614]
[1750768988558,0.85276139,105100.0,105090.0,0.45717614]
[1750768988996,0.84324692,105100.0,105090.0,0.45717614]
[1750768989198,0.84324692,105100.0,105090.0,0.44766094]
[1750768989401,0.83373236,105100.0,105090.0,0.43196094]
[1750768991418,0.64343741,105100.0,105090.0,0.46749115]
[1750768991624,0.83373236,105100.0,105090.0,0.46749115]
[1750768991836,0.83373236,105100.0,105090.0,0.45797614]
[1750768992449,0.83373236,105100.0,105090.0,0.42943027]
[1750768992657,0.82421771,105100.0,105090.0,0.42943027]
[1750768992872,0.82421771,105100.0,105090.0,0.23140186]
[1750768992873,0.81470297,105100.0,105090.0,0.23140186]
[1750768993093,0.81470297,105100.0,105090.0,0.19850186]
[1750768993501,0.81470297,105100.0,105090.0,0.38881492]
[1750768993704,0.81470297,105100.0,105090.0,0.39833057]
[1750768993914,0.34956013,105100.0,105090.0,0.42993057]
[1750768994123,0.64343633,105100.0,105090.0,0.45847643]
[1750768994336,0.662465,105100.0,105090.0,0.45847643]
[1750768994542,0.62440802,105100.0,105090.0,0.45847643]
[1750768994748,0.64343615,105100.0,105090.0,0.60847643]
[1750768994915,0.64343606,105100.0,105090.0,0.60847643]
[1750768995121,0.65295035,105100.0,105090.0,0.60847643]
[1750768995526,0.66246473,105100.0,105090.0,0.60847643]
[1750768995733,0.65295035,105100.0,105090.0,0.60847643]
[1750768996077,0.66246482,105100.0,105090.0,0.60847643]
[1750768996248,0.66246473,105100.0,105090.0,0.60847643]
[1750768996873,0.69104973,105100.0,105090.0,0.60847643]
[1750768997223,0.7005642,105100.0,105090.0,0.60847643]
[1750768997460,0.89086032,105100.0,105090.0,0.58944613]
[1750768997664,0.89086077,105100.0,105090.0,0.6179919]
[1750768998650,0.70056582,105100.0,105090.0,0.61799126]
[1750768998903,0.68153643,105100.0,105090.0,0.61799126]
[1750768999714,0.69105108,105100.0,105090.0,0.61799126]
[1750769001337,0.88134603,105100.0,105090.0,0.19850186]
[1750769001548,0.88134603,105100.0,105090.0,0.103]
[1750769001549,1.17917909,105100.0,105090.0,0.103]
[1750769001755,1.17917909,105100.0,105090.0,0.003]
[1750769002755,1.17917909,105100.0,105090.0,0.001]
[1750769003634,1.14667909,105100.0,105090.0,0.20082862]
[1750769003784,0.86231718,105100.0,105090.0,0.21034391]
[1750769003997,1.13716453,105100.0,105090.0,0.19131306]
[1750769004365,0.85280262,105100.0,105090.0,0.001]
[1750769004588,0.85948797,105100.0,105090.0,0.001]
[1750769004795,1.14384988,105100.0,105090.0,0.001]
[1750769005003,0.00951547,105090.0,105080.0,0.72107881]
[1750769005213,0.57823929,105090.0,105080.0,0.94828067]
[1750769005422,0.77806791,105090.0,105080.0,0.94828067]
[1750769005628,0.77806791,105090.0,105080.0,0.9387652]
[1750769005629,0.81617229,105090.0,105080.0,0.9387652]
[1750769005855,0.80665709,105090.0,105080.0,0.72940186]
[1750769006066,1.15244153,105090.0,105080.0,0.39770186]
[1750769006284,1.15244153,105090.0,105080.0,0.39970186]
[1750769006472,1.15244153,105090.0,105080.0,0.59003303]
[1750769006473,1.13714153,105090.0,105080.0,0.59003303]
[1750769006939,0.56841771,105090.0,105080.0,0.59954958]
[1750769007151,1.13714153,105090.0,105080.0,0.60906604]
[1750769007354,1.13714153,105090.0,105080.0,0.61858241]